{"text_format":"1","workbook":"xlsx","n_sheets":1,"sheets":["Hoja1"],"not_rendered":{"charts":0,"images":0,"macros":1,"external_links":0,"defined_names":0,"comments":0,"pivot_tables":0},"unopened":[],"bounds":{"document_bytes":16777216,"sheet_cells":100000,"rows_first":2000,"rows_last":500,"rows_between":2000,"halvings":0,"cell_chars":16384,"cell_head_chars":4096},"cells_cut":0,"cells_raw":0,"read":"whole","date_system":"1900"}

{"sheet":"Hoja1","index":0,"n_rows":29,"n_cols":12,"rows_kept":29,"cut":false,"hidden":false,"merged":[[0,0,0,11],[1,4,1,7],[1,11,2,11],[1,2,1,3],[2,2,2,3],[2,4,2,5],[1,10,2,10],[2,6,2,7],[2,8,2,9],[1,8,1,9],[1,0,2,1]]}
["COMPETENCIA DIXITAL"]
["2º A",null,"C. NATUREZA",null,"LINGUA CASTELÁ",null,null,null,"L. GALEGA",null,"NOTA MEDIA","CUALIFICACIÓN"]
[null,null,"2º-CNB5.2.2 - Emprega o ordenador de forma guiada e fai un bo uso.",null,"2º-LCB2.8.1 - Utiliza, de xeito guiado, as Tecnoloxías da Información e Comunicación para buscar información.",null,"2º-LCB4.5.1 - Utiliza de forma guiada, distintos programas educativos dixitais.",null,"2º-LGB1.2.1 - Comprende informacións relevantes sinxelas dos documentos audiovisuais que inclúan imaxes e elementos sonoros de carácter redundante."]
[null,"ALUMNO /A","Nota",0.25,"Nota",0.25,"Nota",0.25,"Nota",0.25,1]
[1,null,null,{"$f":"C5*0.25","v":0},null,{"$f":"E5*0.25","v":0},null,{"$f":"G5*0.25","v":0},null,{"$f":"I5*0.25","v":0},{"$f":"SUM(J5,H5,F5,D5,)","v":0},{"$f":"IF(K5<5,\"INSUFICIENTE\",IF(K5<6,\"SUFICIENTE\",IF(K5<7,\"BIEN\",IF(K5<9,\"NOTABLE\",\"SOBRESALIENTE\"))))","v":"INSUFICIENTE"}]
[2,null,null,{"$f":"C6*0.25","v":0},null,{"$f":"E6*0.25","v":0},null,{"$f":"G6*0.25","v":0},null,{"$f":"I6*0.25","v":0},{"$f":"SUM(J6,H6,F6,D6,)","v":0},{"$f":"IF(K6<5,\"INSUFICIENTE\",IF(K6<6,\"SUFICIENTE\",IF(K6<7,\"BIEN\",IF(K6<9,\"NOTABLE\",\"SOBRESALIENTE\"))))","v":"INSUFICIENTE"}]
[3,null,null,0,null,0,null,0,null,0,0,"INSUFICIENTE"]
[4,null,null,0,null,0,null,0,null,0,0,"INSUFICIENTE"]
[5,null,null,0,null,0,null,0,null,0,0,"INSUFICIENTE"]
[{"$f":"A9+1","v":6},null,null,0,null,0,null,0,null,0,0,"INSUFICIENTE"]
[{"$f":"A10+1","v":7},null,null,0,null,0,null,0,null,0,0,"INSUFICIENTE"]
[8,null,null,0,null,0,null,0,null,0,0,"INSUFICIENTE"]
[9,null,null,0,null,0,null,0,null,0,0,"INSUFICIENTE"]
[10,null,null,0,null,0,null,0,null,0,0,"INSUFICIENTE"]
[11,null,null,0,null,0,null,0,null,0,0,"INSUFICIENTE"]
[12,null,null,0,null,0,null,0,null,0,0,"INSUFICIENTE"]
[13,null,null,0,null,0,null,0,null,0,0,"INSUFICIENTE"]
[14,null,null,0,null,0,null,0,null,0,0,"INSUFICIENTE"]
[15,null,null,0,null,0,null,0,null,0,0,"INSUFICIENTE"]
[16,null,null,0,null,0,null,0,null,0,0,"INSUFICIENTE"]
[17,null,null,0,null,0,null,0,null,0,0,"INSUFICIENTE"]
[18,null,null,0,null,0,null,0,null,0,0,"INSUFICIENTE"]
[19,null,null,0,null,0,null,0,null,0,0,"INSUFICIENTE"]
[20,null,null,0,null,0,null,0,null,0,0,"INSUFICIENTE"]
[21,null,null,0,null,0,null,0,null,0,0,"INSUFICIENTE"]
[22,null,null,0,null,0,null,0,null,0,0,"INSUFICIENTE"]
[23,null,null,0,null,0,null,0,null,0,0,"INSUFICIENTE"]
[24,null,null,0,null,0,null,0,null,0,0,"INSUFICIENTE"]
[25,null,null,0,null,0,null,0,null,0,0,"INSUFICIENTE"]